bitfinex-derivatives/quotes_ETHF0:USTF0_20250308
["timestamp","ask_amount","ask_price","bid_price","bid_amount"]
[1741446334798,3.2078,2172.9,2172.8,0.00688958]
[1741446334992,3.28083998,2172.9,2172.8,0.00688958]
[1741446335797,3.28083998,2172.9,2172.1,4.4821]
[1741446335798,7.28083998,2172.9,2172.1,4.4821]
[1741446335990,3.2078,2172.5,2172.1,4.4821]
[1741446336190,3.2078,2172.5,2171.5,2.104]
[1741446336191,3.2078,2172.2,2171.8,3.2078]
[1741446336394,2.108,2172.1,2171.8,3.2078]
[1741446336697,2.109,2172.4,2171.9,0.6269]
[1741446336899,2.109,2172.4,2171.9,1.2454]
[1741446337096,5.3178,2172.9,2172.1,3.2078]
[1741446337292,5.3198,2173.3,2172.4,3.2078]
[1741446337493,3.2078,2173.0,2172.5,0.6061]
[1741446337799,3.2078,2173.0,2172.6,0.6344]
[1741446338299,0.00690608,2173.0,2172.6,0.6344]
[1741446338998,0.00690608,2173.0,2172.7,3.2078]
[1741446340497,0.00690608,2173.0,2172.8,0.5991]
[1741446344198,0.00690608,2173.0,2172.8,22.2991]
[1741446345898,0.00690608,2173.0,2172.8,0.5991]
[1741446346306,3.2078,2172.9,2172.6,0.6344]
[1741446347000,5.3208,2172.9,2172.5,0.0158]
[1741446347200,0.6561,2172.8,2172.5,0.0158]
[1741446348000,3.2078,2172.6,2172.5,0.0158]
[1741446348404,3.28081885,2172.6,2172.5,0.0158]
[1741446348902,3.28081885,2172.6,2171.7,3.863]
[1741446348903,7.28081885,2172.6,2171.7,3.863]
[1741446349207,7.28081885,2172.6,2170.9,0.92141]
[1741446349208,3.2078,2172.1,2170.8,3.2078]
[1741446349396,3.2078,2171.3,2170.8,3.2078]
[1741446349598,2.21398389,2171.2,2170.4,3.2078]
[1741446349801,3.2078,2171.6,2170.7,3.2078]
[1741446349802,2.146,2171.1,2170.7,3.2078]
[1741446350197,2.146,2171.1,2170.7,3.21470608]
[1741446350198,2.15290608,2171.1,2170.7,3.21470608]
[1741446350600,0.00690608,2171.1,2170.7,3.21470608]
[1741446350807,0.00690608,2171.1,2170.8,0.5989]
[1741446351004,0.00690608,2171.1,2170.9,0.6384]
[1741446351200,2.178,2171.4,2171.0,3.8466]
[1741446351598,2.924,2172.5,2171.3,3.2078]
[1741446351599,5.3888,2171.9,2171.3,3.2078]
[1741446351906,3.2078,2171.9,2171.0,3.8466]
[1741446352105,3.2078,2171.9,2171.4,0.0594]
[1741446352302,0.00690608,2171.7,2171.4,0.0594]
[1741446352503,2.188,2171.6,2171.4,0.0594]
[1741446354308,0.00690608,2171.7,2171.4,0.0594]
[1741446356704,0.00690608,2171.7,2171.5,21.7]
[1741446356911,0.00690608,2171.7,2171.6,0.6461]
[1741446357307,0.00690608,2171.7,2171.4,0.0594]
[1741446358105,3.2078,2171.6,2171.4,0.0594]
[1741446358698,0.00690608,2171.7,2171.4,0.0594]
[1741446359809,3.2078,2171.6,2171.4,0.0594]
[1741446362113,0.00690608,2171.7,2171.4,0.0594]
[1741446362307,0.00690608,2171.7,2171.5,0.6403]
[1741446363304,0.00690608,2171.7,2171.6,0.6202]
[1741446363604,1.0227165,2172.8,2171.6,0.6202]
[1741446363605,24.1848,2172.6,2171.6,0.6202]
[1741446363810,3.2078,2172.3,2171.6,0.6202]
[1741446364811,3.2078,2172.0,2171.7,0.00690608]
[1741446365017,2.19690608,2172.2,2171.7,0.00690608]
[1741446365611,3.2078,2171.9,2171.7,0.00690608]
[1741446366711,5.40470608,2172.2,2171.7,0.00690608]
[1741446369110,3.2078,2171.9,2171.7,0.00690608]
[1741446369313,2.8303,2171.8,2171.7,0.00690608]
[1741446371413,2.199,2171.8,2171.7,0.00690608]
[1741446372308,7.06059209,2171.8,2171.7,0.00690608]
[1741446373110,3.06059209,2171.8,2171.7,0.00690608]
[1741446373310,3.06059209,2171.8,2171.4,0.0594]
[1741446373311,7.75436549,2171.8,2171.4,0.0594]
[1741446373509,3.2078,2171.5,2171.4,0.0594]
[1741446374022,8.06939209,2171.5,2171.4,0.0594]
[1741446374207,9.48756093,2171.5,2171.4,0.0594]
[1741446374404,10.38002915,2171.5,2171.2,0.00690608]
[1741446374613,3.82306093,2171.4,2171.2,0.00690608]
[1741446374913,0.07314356,2171.3,2170.2,0.6154]
[1741446375213,3.2078,2170.7,2169.7,3.2078]
[1741446375420,3.2078,2169.8,2169.3,0.19069155]
[1741446375615,2.217,2169.7,2169.3,0.19069155]
[1741446375818,3.2078,2169.8,2169.3,0.19069155]
[1741446376114,2.224,2169.7,2169.3,3.40539763]
[1741446376920,0.00690608,2169.8,2169.3,3.40539763]
[1741446377114,22.0128,2170.4,2169.6,3.2078]
[1741446377412,24.2368,2170.4,2169.6,3.2078]
[1741446377619,24.2368,2170.4,2169.6,3.3091]
[1741446377812,2.224,2170.7,2169.9,3.2078]
[1741446378012,2.224,2170.7,2170.0,0.6361]
[1741446378221,5.4318,2170.7,2170.0,0.6361]
[1741446378419,0.00690608,2170.6,2170.0,0.6361]
[1741446378620,3.21470608,2170.6,2170.0,0.6361]
[1741446378919,3.2078,2170.3,2169.9,3.2078]
[1741446379320,2.232,2170.2,2169.9,3.2078]
[1741446379518,3.2078,2170.3,2169.9,3.2078]
[1741446379818,5.4408,2170.3,2169.9,3.2078]
[1741446380015,2.233,2170.3,2169.9,3.2078]
[1741446380316,5.45070608,2170.6,2169.9,3.2078]
[1741446380519,5.45070608,2170.6,2170.0,0.6322]
[1741446381718,3.2078,2170.3,2169.8,0.6073]
[1741446381914,2.234,2170.2,2169.8,0.6073]
[1741446382114,2.234,2170.2,2169.8,3.8151]
[1741446382417,2.234,2170.2,2169.7,22.3322]
[1741446382418,3.2078,2170.0,2169.7,0.6322]
[1741446382613,3.2078,2170.0,2169.6,0.1013]
[1741446383617,3.2078,2170.0,2169.7,0.6505]
[1741446383918,2.246,2170.4,2169.7,7.4493]
[1741446385118,2.246,2170.4,2169.7,8.37123]
[1741446385322,2.246,2170.4,2169.7,7.4493]
[1741446386920,0.00690608,2170.6,2170.0,3.2078]
[1741446387113,0.00690608,2170.6,2170.1,0.603]
[1741446388217,0.00690608,2170.6,2170.3,3.2078]
[1741446390020,0.00690608,2170.6,2170.4,1.2671]
[1741446395124,0.00690608,2170.6,2170.5,21.7]
[1741446395318,0.00690608,2170.6,2170.4,1.2671]
[1741446400533,0.4122,2170.9,2170.4,8.2511]
[1741446400722,0.4122,2170.9,2170.8,3.2078]
[1741446404333,0.00690608,2171.1,2170.8,3.2078]
[1741446404529,0.00690608,2171.1,2170.9,0.6293]
[1741446405034,2.235,2171.6,2170.9,0.6293]
[1741446405239,2.235,2171.6,2171.1,3.2078]
[1741446405436,2.235,2171.6,2171.2,0.6588]
[1741446406228,2.24189506,2171.6,2171.2,0.6588]
[1741446407729,0.00689506,2171.6,2171.2,0.6588]
[1741446410037,0.00689506,2171.6,2171.4,3.2078]
[1741446412444,0.89492079,2172.0,2171.5,1.2789]
[1741446412635,2.218,2172.2,2171.5,2.20007]
[1741446412835,2.218,2172.2,2171.7,3.2078]
[1741446413038,1.2374,2172.3,2171.8,0.6349]
[1741446413237,5.4248,2172.4,2171.8,0.6349]
[1741446413637,5.4248,2172.4,2171.9,0.00690608]
[1741446414544,3.2078,2172.4,2171.9,0.00690608]
[1741446415043,0.89484883,2172.5,2172.0,3.2078]
[1741446415237,0.89484883,2172.5,2172.1,0.6402]
[1741446415644,3.10584883,2172.6,2172.1,0.6402]
[1741446416043,2.211,2172.6,2172.1,0.6402]
[1741446417841,2.211,2172.6,2172.0,3.2078]
[1741446419137,5.4158,2172.7,2172.0,3.2078]
[1741446419543,5.4148,2172.7,2172.0,3.2078]
[1741446420748,2.204,2172.8,2172.0,4.12875]
[1741446420948,2.204,2172.8,2172.3,3.2078]
[1741446421245,5.4118,2172.8,2172.4,1.2302]
[1741446422046,3.2078,2172.8,2172.4,1.2302]
[1741446422247,0.6212,2172.9,2172.4,1.2302]
[1741446422449,0.6212,2172.9,2172.4,1.8552]
[1741446422649,2.201,2173.0,2172.4,1.8552]
[1741446422945,3.2078,2173.1,2172.6,3.2078]
[1741446423141,5.4078,2173.1,2172.6,3.2078]
[1741446424449,5.4048,2173.1,2172.6,3.2078]
[1741446424848,1.2515,2173.3,2172.6,3.2078]
[1741446425052,2.196,2173.2,2172.6,4.12852]
[1741446425247,2.196,2173.2,2172.6,3.2078]
[1741446425743,2.196,2173.2,2172.9,3.2078]
[1741446425946,2.196,2173.2,2173.0,0.6295]
[1741446426349,1.2515,2173.3,2173.0,0.6295]
[1741446426652,0.6303,2173.3,2173.0,1.2281]
[1741446427352,3.8532,2173.4,2173.0,1.2281]
[1741446427952,3.2078,2173.4,2173.0,1.2281]
[1741446428249,0.07305649,2173.5,2173.2,0.92046]
[1741446428454,0.07305649,2173.5,2173.2,3.2078]
[1741446428752,0.6454,2173.9,2173.2,3.2078]
[1741446428753,0.6467,2174.0,2173.2,3.2078]
[1741446428955,0.6467,2174.0,2173.5,3.2078]
[1741446429246,3.8532,2174.1,2173.6,1.2431]
[1741446429460,3.2078,2173.7,2173.2,2.984]
[1741446429651,3.2078,2173.4,2173.2,2.984]
[1741446429853,3.2078,2173.4,2173.1,0.00690608]
[1741446430052,0.6149,2173.6,2173.1,0.00690608]
[1741446430854,0.6149,2173.6,2173.1,3.21470608]
[1741446435160,3.2078,2173.7,2173.1,3.21470608]
[1741446435857,5.4048,2173.7,2173.1,3.21470608]
[1741446440357,3.2078,2173.7,2173.1,3.21470608]
[1741446440558,2.189,2173.6,2173.1,3.21470608]
[1741446441063,3.2078,2173.3,2173.1,0.00690608]
[1741446441360,1.2545,2173.2,2173.1,0.00690608]
[1741446442969,2.7848,2173.2,2173.1,0.00690608]
[1741446445467,5.3868,2173.3,2173.1,0.00690608]
[1741446446261,0.6537,2173.5,2173.1,0.00690608]
[1741446446262,2.178,2173.5,2173.1,0.00690608]
[1741446446467,3.04462419,2173.5,2173.1,0.00690608]
[1741446446660,3.2078,2173.6,2173.1,3.21470608]
[1741446446862,4.07445385,2173.6,2173.2,0.6531]
[1741446447062,2.179,2173.7,2173.2,0.6531]
[1741446447266,1.56460869,2173.8,2173.4,3.2078]
[1741446447562,0.86691631,2173.8,2173.5,0.66]
[1741446447765,5.3878,2173.9,2173.5,0.66]
[1741446447968,0.86691631,2173.8,2173.5,0.66]
[1741446449266,1.56521203,2173.8,2173.4,3.2078]
[1741446449472,3.74321203,2173.8,2173.4,3.2078]
[1741446449668,4.64084322,2173.8,2173.4,3.2078]
[1741446449967,3.9425475,2173.8,2173.4,3.2078]
[1741446450472,4.64073083,2173.8,2173.4,3.2078]
[1741446450871,3.9425475,2173.8,2173.4,3.2078]
[1741446451272,3.04491631,2173.8,2173.4,3.2078]
[1741446451770,0.86691631,2173.8,2173.4,3.2078]
[1741446452162,3.2078,2173.9,2173.4,3.2078]
[1741446452569,4.77318611,2173.9,2173.4,3.2078]
[1741446452777,0.86691631,2173.8,2173.4,3.2078]
[1741446453666,3.2078,2173.9,2173.4,3.2078]
[1741446454069,4.77307614,2173.9,2173.4,3.2078]
[1741446454268,0.86691631,2173.8,2173.4,3.2078]
[1741446454468,4.07471631,2173.9,2173.4,3.2078]
[1741446454675,0.86691631,2173.8,2173.4,3.2078]
[1741446455275,3.2078,2173.9,2173.4,3.2078]
[1741446455477,4.10557484,2173.9,2173.4,3.2078]
[1741446455771,0.86691631,2173.8,2173.4,3.2078]
[1741446456868,4.07471631,2173.9,2173.4,3.2078]
[1741446457274,0.86691631,2173.8,2173.4,3.2078]
[1741446457469,3.2078,2173.9,2173.4,3.2078]
[1741446457971,5.67022383,2173.9,2173.4,3.2078]
[1741446458177,0.86691631,2173.8,2173.4,3.2078]
[1741446458779,4.07471631,2173.9,2173.4,3.2078]
[1741446459495,3.2078,2173.9,2173.4,3.2078]
[1741446460078,3.2078,2173.6,2173.3,0.6562]
[1741446460675,4.75389407,2173.6,2173.3,0.6562]
[1741446460974,3.2078,2173.6,2173.3,0.6562]
[1741446461280,8.75359586,2173.6,2172.6,3.2078]
[1741446461480,3.2078,2173.1,2172.6,3.8335]
[1741446461677,5.3848,2173.1,2172.6,0.6257]
[1741446461877,1.54579586,2173.0,2172.6,0.6257]
[1741446462070,0.69772537,2173.0,2172.7,0.6238]
[1741446462276,5.3848,2173.1,2172.7,0.6238]
[1741446462581,0.00690608,2173.1,2172.7,0.6238]
[1741446463184,3.21470608,2173.1,2172.7,0.6238]
[1741446463783,5.65639848,2173.1,2172.7,0.6238]
[1741446463985,4.11127821,2173.1,2172.7,0.6238]
[1741446464184,3.21470608,2173.1,2172.7,0.6238]
[1741446464582,4.75925574,2173.1,2172.7,0.6238]
[1741446464785,3.21470608,2173.1,2172.7,0.6238]
[1741446466187,0.00690608,2173.1,2172.7,0.6238]
[1741446466589,0.00690608,2173.1,2172.9,3.2078]
[1741446471591,0.00690608,2173.1,2172.7,0.6238]
[1741446471592,3.21470608,2173.1,2172.7,0.6238]
[1741446472086,0.6289,2173.0,2172.7,0.6238]
[1741446472294,1.98310049,2173.0,2172.7,0.6238]
[1741446475300,1.2854,2173.0,2172.7,0.6238]
[1741446476695,1.2854,2173.0,2172.6,0.63260608]
[1741446477700,3.4454,2173.0,2172.6,0.63260608]
[1741446478595,3.2078,2172.8,2172.6,0.00690608]
[1741446479095,4.75260028,2172.8,2172.6,0.00690608]
[1741446479295,4.10402821,2172.8,2172.6,0.00690608]
[1741446479500,3.2078,2172.8,2172.6,0.00690608]
[1741446480000,4.75206886,2172.8,2172.6,0.00690608]
[1741446480199,0.69709601,2172.7,2172.6,0.00690608]
[1741446480394,3.90489601,2172.8,2172.6,0.00690608]
[1741446480600,3.2078,2172.8,2172.6,0.00690608]
[1741446480998,5.64835349,2172.8,2172.6,0.00690608]
[1741446481196,4.10398233,2172.8,2172.6,0.00690608]
[1741446482009,3.2078,2172.8,2172.6,0.00690608]
[1741446482502,2.4404926,2172.9,2172.6,0.00690608]
[1741446482503,0.89618233,2172.9,2172.6,0.00690608]
[1741446482910,2.7889,2173.0,2172.6,0.00690608]
[1741446483106,3.48607349,2173.0,2172.6,0.00690608]
[1741446483803,3.47807349,2173.0,2172.6,0.00690608]
[1741446484208,4.32577375,2173.0,2172.6,0.00690608]
[1741446485108,3.47807349,2173.0,2172.6,0.00690608]
[1741446485304,4.32610331,2173.0,2172.6,0.00690608]
[1741446485506,5.22315568,2173.0,2172.6,0.00690608]
[1741446485707,3.67795237,2173.0,2172.6,0.00690608]
[1741446485902,4.32688446,2173.0,2172.6,0.00690608]
[1741446486211,0.00690608,2173.1,2172.6,0.00690608]
[1741446486409,0.00690608,2173.1,2172.8,3.2078]
[1741446486710,0.00690608,2173.1,2172.9,1.8858]
[1741446487302,0.00690608,2173.1,2172.9,1.2427]
[1741446487713,3.21470608,2173.1,2172.9,0.619]
[1741446488211,4.76260069,2173.1,2172.9,0.619]
[1741446488406,3.21470608,2173.1,2172.9,0.619]
[1741446488713,0.00690608,2173.1,2172.9,0.619]
[1741446488907,0.00690608,2173.1,2173.0,1.2878]
[1741446496015,0.89774536,2173.5,2173.1,0.92049]
[1741446496318,0.89774536,2173.7,2173.2,3.2078]
[1741446496714,0.89774536,2173.7,2173.2,24.9078]
[1741446496916,1.35474554,2173.9,2173.2,24.9078]
[1741446497125,0.6566,2173.9,2173.2,24.9078]
[1741446497320,3.10054536,2173.9,2173.2,24.9078]
[1741446498220,2.44394536,2173.9,2173.3,0.9204]
[1741446498414,0.89740057,2173.9,2173.2,4.12824]
[1741446499020,4.10520057,2174.0,2173.2,3.2078]
[1741446499219,4.10520057,2174.0,2173.3,0.6375]
[1741446499621,4.10520057,2174.0,2173.4,0.6596]
[1741446501326,3.2078,2174.0,2173.5,0.6292]
[1741446501628,3.90465254,2174.0,2173.5,0.6292]
[1741446501824,3.2078,2174.0,2173.5,0.6292]
[1741446502031,3.2078,2174.0,2173.5,3.837]
[1741446502528,0.01857,2174.2,2173.8,3.2078]
[1741446502731,0.01857,2174.2,2173.9,1.259]
[1741446502922,0.01857,2174.2,2174.0,0.6242]
[1741446504121,0.01857,2174.2,2174.1,3.2078]
[1741446504526,3.2078,2174.6,2174.1,3.2078]
[1741446504727,3.6803626,2176.0,2174.4,3.2078]
[1741446504728,2.141,2174.8,2174.4,3.2078]
[1741446504935,3.2078,2174.9,2174.5,1.8763]
[1741446507233,0.6607,2174.8,2174.5,0.6131]
[1741446507823,0.6607,2174.8,2174.4,3.2078]
[1741446508634,3.2078,2174.9,2174.4,3.2078]
[1741446508832,3.2078,2174.9,2174.5,0.613]
[1741446510138,2.144,2175.0,2174.5,0.613]
[1741446510834,2.136,2175.0,2174.5,0.613]
[1741446511839,1.2411,2175.1,2174.5,0.613]
[1741446512136,3.3751,2175.1,2174.5,0.613]
[1741446513136,3.3751,2175.1,2174.7,3.2078]
[1741446513331,1.2411,2175.1,2174.8,0.6239]
[1741446513535,3.2078,2175.3,2174.8,0.6239]
[1741446513536,5.3398,2175.3,2174.8,0.6239]
[1741446513736,0.6471,2175.2,2174.8,0.6239]
[1741446514140,2.133,2175.4,2174.8,1.54367]
[1741446514342,3.2078,2175.6,2175.0,3.2078]
[1741446514638,2.132,2175.6,2175.0,3.2078]
[1741446515240,2.7362,2175.7,2175.0,4.12748]
[1741446515544,2.7352,2175.7,2175.3,3.2078]
[1741446515844,0.35171675,2176.1,2175.4,0.6563]
[1741446515845,2.131,2176.1,2175.4,0.6563]
[1741446516144,2.131,2176.1,2175.4,1.2875]
[1741446516339,3.2078,2176.2,2175.6,3.2078]
[1741446516534,4.4518,2176.5,2175.6,4.12723]
[1741446516842,2.136,2176.4,2175.7,0.656]
[1741446517038,6.5868,2176.5,2175.9,3.2078]
[1741446517644,6.5868,2176.5,2175.9,4.4988]
[1741446518141,1.244,2176.5,2175.9,4.4988]
[1741446518938,1.244,2176.5,2176.0,0.91927]
[1741446519144,2.133,2176.6,2176.2,3.2078]
[1741446519338,20.0297,2176.8,2176.2,3.2078]
[1741446519538,3.2078,2176.9,2176.2,3.2078]
[1741446519739,4.4585,2177.2,2176.4,0.91908]
[1741446520043,2.133,2177.1,2176.5,3.8482]
[1741446520237,3.2078,2176.9,2176.5,3.8482]
[1741446522040,3.2078,2176.9,2176.5,3.2078]
[1741446522241,2.13,2176.8,2176.5,3.2078]
[1741446523636,5.3348,2176.9,2176.5,3.2078]
[1741446524042,2.127,2176.9,2176.5,3.2078]
[1741446525649,3.2078,2176.9,2176.5,3.2078]
[1741446525851,2.123,2177.0,2176.5,3.2078]
[1741446526348,2.123,2177.0,2176.6,0.6177]
[1741446526941,2.123,2177.1,2176.6,0.6177]
[1741446527144,4.4585,2177.2,2176.6,0.6177]
[1741446527338,2.122,2177.1,2176.6,0.6177]
[1741446527849,2.122,2177.1,2176.7,0.6261]
[1741446528248,4.4585,2177.2,2176.7,0.6261]
[1741446528448,2.12,2177.1,2176.7,0.6261]
[1741446528649,3.2078,2176.9,2176.5,3.2078]
[1741446529455,5.3278,2176.9,2176.5,3.2078]
[1741446529841,5.3278,2176.9,2176.3,0.6261]
[1741446530455,5.3278,2176.9,2176.0,0.00690608]
[1741446530766,3.2078,2176.6,2176.0,0.00690608]
[1741446531052,3.2078,2176.2,2176.0,0.00690608]
[1741446532245,2.123,2176.1,2176.0,0.00690608]
[1741446534752,2.123,2176.1,2175.3,3.8515]
[1741446534949,3.2078,2175.9,2175.3,4.4918]
[1741446535658,3.2078,2175.9,2175.4,0.00689006]
[1741446535965,3.8526,2175.9,2175.4,0.00689006]
[1741446538263,3.2078,2175.5,2175.4,0.00689006]
[1741446540357,2.116,2175.7,2175.4,0.00689006]
[1741446540859,3.2078,2175.5,2175.4,0.00689006]
[1741446544049,2.116,2175.7,2175.4,0.00689006]
[1741446544864,3.2078,2175.8,2175.4,0.00689006]
[1741446545054,2.106,2175.6,2175.4,0.00689006]
[1741446545859,3.2078,2175.5,2175.4,0.00689006]
[1741446548552,3.8188,2175.5,2175.4,0.00689006]
[1741446550466,9.43001988,2175.5,2174.8,0.6456]
[1741446550666,3.2078,2174.9,2174.8,0.6456]
[1741446550866,5.3128,2174.9,2174.8,0.6456]
[1741446551167,2.105,2174.9,2174.8,0.6456]
[1741446552066,5.3128,2174.9,2174.8,0.6456]
[1741446555769,2.105,2174.9,2174.8,0.6456]
[1741446557372,0.00689006,2175.1,2174.8,0.6456]
[1741446557665,0.00689006,2175.1,2174.9,1.2545]
[1741446559457,3.2078,2175.5,2174.9,1.2545]
[1741446559663,3.2078,2175.9,2175.3,3.2078]
[1741446559859,0.89586761,2176.0,2175.4,1.2451]
[1741446560365,0.89586761,2176.0,2175.6,3.2078]
[1741446560568,2.105,2176.1,2175.6,3.2078]
[1741446560775,0.00685268,2176.0,2175.6,3.2078]
[1741446561175,0.00685268,2176.0,2175.9,3.2078]
[1741446562064,3.2078,2176.5,2175.9,7.2078]
[1741446562374,3.2078,2176.5,2176.0,0.6293]
[1741446562867,3.2078,2176.5,2176.1,0.6182]
[1741446563465,2.105,2177.0,2176.3,3.2078]
[1741446563668,1.54285829,2177.1,2176.6,3.2078]
[1741446563870,3.00044824,2177.1,2176.7,0.6519]
[1741446564375,2.105,2177.1,2176.7,0.6519]
[1741446564670,2.105,2177.1,2176.3,3.2078]
[1741446564671,3.2078,2176.9,2176.3,3.2078]
[1741446565068,4.7490966,2176.9,2176.3,3.2078]
[1741446565267,3.2078,2176.5,2176.2,1.2501]
[1741446565467,3.2078,2176.5,2175.7,8.2968]
[1741446565677,3.2078,2176.2,2175.8,1.2501]
[1741446565974,3.2078,2176.2,2175.7,3.2078]
[1741446565975,5.3128,2176.2,2175.7,3.2078]
[1741446566981,3.2078,2176.2,2175.7,3.2078]
[1741446567279,5.3128,2176.2,2175.7,3.2078]
[1741446567474,2.105,2176.2,2175.8,0.6406]
[1741446568180,2.105,2176.2,2176.0,3.2078]
[1741446568481,3.2078,2176.5,2176.1,0.6337]
[1741446568782,3.2078,2176.5,2176.1,1.2634]
[1741446571273,2.109,2176.6,2176.1,1.2634]
[1741446571473,3.2078,2176.5,2176.1,1.2634]
[1741446572075,3.2078,2176.2,2175.8,0.6406]
[1741446572278,5.3178,2176.2,2175.7,3.2078]
[1741446572585,5.3178,2176.2,2175.8,0.629]
[1741446574177,2.11,2176.2,2175.8,0.629]
[1741446575480,2.11,2176.2,2175.9,0.6173]
[1741446576781,2.11,2176.2,2176.0,0.6011]
[1741446577583,2.11,2176.2,2175.9,0.6173]
[1741446578086,5.3178,2176.2,2175.7,3.2078]
[1741446578288,1.2147,2176.1,2175.7,3.2078]
[1741446579287,5.3178,2176.2,2175.7,3.2078]
[1741446579490,2.11,2176.2,2175.7,3.2078]
[1741446580786,2.11,2176.2,2175.7,4.1272]
[1741446581192,2.11,2176.2,2175.7,3.2078]
[1741446581587,2.11,2176.2,2175.7,4.12717]
[1741446582095,2.11,2176.2,2175.7,3.2078]
[1741446582485,2.11,2176.2,2175.7,4.1272]
[1741446582681,2.105,2176.4,2175.7,3.2078]
[1741446582883,1.2147,2176.5,2176.0,3.2078]
[1741446582884,2.105,2176.5,2176.0,3.2078]
[1741446583087,2.105,2176.5,2176.1,1.845]
[1741446584193,1.2757,2177.0,2176.3,3.2078]
[1741446584391,2.104,2176.9,2176.3,3.2078]
[1741446587393,3.64971956,2176.9,2176.3,3.2078]
[1741446587594,4.54675246,2176.9,2176.3,3.2078]
[1741446587995,3.2078,2176.8,2176.3,3.2078]
[1741446588299,5.65055246,2176.8,2176.3,3.2078]
[1741446588593,2.104,2176.9,2176.3,3.2078]
[1741446588799,2.104,2176.8,2176.3,3.2078]
[1741446589097,1.54673381,2176.9,2176.3,3.2078]
[1741446589294,2.44434028,2176.9,2176.3,3.2078]
[1741446589488,3.2078,2176.8,2176.3,3.2078]
[1741446589691,5.65214028,2176.8,2176.3,3.2078]
[1741446589891,1.54673381,2176.7,2176.3,3.2078]
[1741446590298,0.5989,2176.6,2176.3,3.2078]
[1741446590698,0.5989,2176.6,2176.1,1.845]
[1741446591502,0.5989,2176.6,2176.1,1.2275]
[1741446591705,3.8496,2176.5,2176.1,1.2275]
[1741446591904,3.8496,2176.5,2176.1,0.6082]
[1741446592101,5.39633381,2176.5,2176.1,0.6082]
[1741446592302,2.44434028,2176.4,2176.1,0.6082]
[1741446597004,1.59587319,2176.4,2176.1,0.6082]
[1741446597197,0.89760647,2176.4,2176.1,0.6082]
[1741446597606,2.44533846,2176.5,2176.1,0.6082]
[1741446598511,5.65313846,2176.5,2176.1,0.6082]
[1741446598705,2.44533846,2176.4,2176.1,0.6082]
[1741446599507,2.44533846,2176.4,2176.0,3.2078]
[1741446599707,2.44533846,2176.4,2175.9,1.2522]
[1741446600504,2.44533846,2176.4,2175.9,0.6247]
[1741446600708,2.44533846,2176.4,2176.0,0.6219]
[1741446603911,2.44533846,2176.4,2175.9,0.6247]
[1741446605611,4.54933846,2176.4,2175.9,0.6247]
[1741446611016,2.44533846,2176.4,2175.9,0.6247]
[1741446611218,4.54933846,2176.4,2175.9,0.6247]
[1741446611710,4.54933846,2176.4,2176.0,3.2078]
[1741446611906,0.69826672,2176.3,2176.0,3.2078]
[1741446612117,3.00160647,2176.4,2176.1,0.6076]
[1741446612321,2.104,2176.4,2176.1,0.6076]
[1741446612704,2.44500959,2176.5,2176.1,0.6076]
[1741446613516,2.44500959,2176.5,2176.2,0.91919]
[1741446613722,0.89760647,2176.5,2176.4,3.2078]
[1741446613918,1.54821841,2176.8,2176.4,3.2078]
[1741446614116,1.54821841,2176.8,2176.5,0.6076]
[1741446614316,2.44668254,2176.8,2176.5,0.6076]
[1741446616216,2.44668254,2176.8,2176.4,0.6235]
[1741446616412,0.6368,2176.7,2176.4,0.6235]
[1741446617714,0.6368,2176.7,2176.1,3.8109]
[1741446617919,0.6587,2176.6,2176.2,0.6568]
[1741446618324,3.8665,2176.6,2176.2,0.6568]
[1741446618513,0.89846413,2176.5,2176.2,0.6568]
[1741446618716,2.44668254,2176.5,2176.2,0.6568]
[1741446618922,2.104,2176.4,2176.1,3.2078]
[1741446619523,0.6109,2176.3,2176.1,3.2078]
[1741446620321,1.50936413,2176.3,2176.1,3.2078]
[1741446620522,3.05758254,2176.3,2176.1,3.2078]
[1741446621626,3.05758254,2176.3,2175.8,4.4707]
[1741446622226,6.26538254,2176.3,2175.8,4.4707]
[1741446622527,2.44668254,2176.2,2175.8,4.4707]
[1741446625724,0.89846413,2176.2,2175.8,4.4707]
[1741446626120,2.44668254,2176.3,2175.8,4.4707]
[1741446626328,1.59736974,2176.3,2175.8,5.39003]
[1741446626627,0.89846413,2176.3,2175.9,0.91931]
[1741446626824,0.89846413,2176.3,2175.8,5.39004]
[1741446627025,2.104,2176.4,2175.8,5.39004]
[1741446627422,2.104,2176.4,2175.8,4.4707]
[1741446627621,2.104,2176.4,2175.8,5.39005]
[1741446627821,2.44611599,2176.5,2176.1,3.2078]
[1741446628023,0.89846413,2176.5,2176.2,1.2685]
[1741446628323,0.84874625,2176.6,2176.3,0.6189]
[1741446628631,2.104,2176.7,2176.3,0.6189]
[1741446629827,5.3118,2176.7,2176.3,0.6189]
[1741446630129,2.44611599,2176.6,2176.3,0.6189]
[1741446631030,3.10251599,2176.6,2176.3,0.6189]
[1741446632431,3.10251599,2176.6,2176.2,1.2685]
[1741446632631,0.6434,2176.5,2175.9,0.629]
[1741446632832,0.6434,2176.5,2175.9,1.282]
[1741446633930,3.2078,2176.4,2175.9,1.282]
[1741446634431,5.65391599,2176.4,2175.9,1.282]
[1741446634626,1.54765186,2176.3,2175.9,1.282]
[1741446634826,2.44611599,2176.3,2175.9,1.282]
[1741446636028,0.89846413,2176.3,2175.9,1.282]
[1741446636224,4.75545186,2176.4,2175.9,1.282]
[1741446636427,1.54765186,2176.3,2175.9,1.282]
[1741446636925,0.6002,2176.2,2175.9,1.282]
[1741446639329,2.14785186,2176.2,2175.9,1.282]
[1741446639532,3.04631599,2176.2,2175.9,1.282]
[1741446641232,3.04631599,2176.2,2175.8,3.2078]
[1741446641829,3.2078,2176.1,2175.6,22.36619006]
[1741446642030,4.75545186,2176.1,2175.6,22.36619006]